fUSD/lending_fUSD_20240215
["ID","MTS","AMOUNT","RATE_DAILY","PERIOD"]
[314139339,1708019455443,-500.0,0.0003863,7]
[314139340,1708019455452,-170.86090427,0.0003863,7]
[314139341,1708019455461,-500.0,0.0003863,7]
[314139342,1708019455471,-500.0,0.0003863,7]
[314139343,1708019455480,-532.40901762,0.0003863,7]
[314139344,1708019455491,-500.0,0.0003863,7]
[314139345,1708019455500,-500.0,0.0003863,7]
[314139346,1708019455510,-500.0,0.0003863,7]
[314139347,1708019455520,-500.0,0.0003863,7]
[314139348,1708019455530,-500.0,0.0003863,7]
[314139349,1708019455539,-500.0,0.0003863,7]
[314139350,1708019455549,-500.0,0.0003863,7]
[314139351,1708019455558,-177.14,0.0003863,7]
[314139352,1708019455567,-500.0,0.0003863,7]
[314139353,1708019455577,-500.0,0.0003863,7]
[314139354,1708019455586,-500.0,0.0003863,7]
[314139355,1708019455595,-1893.96,0.0003863,7]
[314139356,1708019455604,-1000.0,0.0003863,7]
[314139357,1708019455614,-500.0,0.0003863,7]
[314139358,1708019455623,-648.05617928,0.0003863,7]
[314139359,1708019455632,-564.89,0.0003863,7]
[314139360,1708019455641,-500.0,0.0003863,7]
[314139361,1708019455650,-500.0,0.0003863,7]
[314139362,1708019455660,-500.0,0.0003863,7]
[314139363,1708019455669,-824.46,0.0003863,7]
[314139364,1708019455678,-500.0,0.0003863,7]
[314139365,1708019455687,-500.0,0.0003863,7]
[314139366,1708019455697,-500.0,0.0003863,7]
[314139367,1708019455706,-595.75818831,0.0003863,7]
[314139368,1708019455715,-500.0,0.0003863,7]
[314139369,1708019455725,-500.0,0.0003863,7]
[314139370,1708019455735,-486.59629506,0.0003863,7]
[314139371,1708019455746,-500.0,0.0003863,7]
[314139372,1708019455755,-331.38575773,0.0003863,7]
[314139373,1708019455764,-543.07459033,0.0003863,7]
[314139374,1708019455773,-522.68503779,0.0003863,7]
[314139375,1708019455782,-616.25,0.0003863,7]
[314139376,1708019455791,-500.0,0.0003863,7]
[314139377,1708019455801,-500.0,0.0003863,7]
[314139378,1708019455811,-500.0,0.0003863,7]
[314139379,1708019455820,-204.09906693,0.0003863,7]
[314139380,1708019455829,-500.0,0.0003863,7]
[314139381,1708019455839,-519.78718227,0.0003863,7]
[314139382,1708019455849,-592.22901512,0.0003863,7]
[314139383,1708019455859,-500.0,0.0003863,7]
[314139384,1708019455868,-534.14734115,0.0003863,7]
[314139385,1708019455878,-500.0,0.0003863,7]
[314139386,1708019455888,-500.0,0.0003863,7]
[314139387,1708019455897,-500.0,0.0003863,7]
[314139388,1708019455907,-313.85171886,0.0003863,7]
[314139389,1708019455917,-533.51825794,0.0003863,7]
[314139390,1708019455926,-549.08476759,0.0003863,7]
[314139391,1708019455935,-500.0,0.0003863,7]
[314139392,1708019455945,-793.39,0.0003863,7]
[314139393,1708019455955,-553.80078902,0.0003863,7]
[314139394,1708019455964,-500.0,0.0003863,7]
[314139395,1708019455973,-500.0,0.0003863,7]
[314139396,1708019455982,-509.51676777,0.0003863,7]
[314139397,1708019455994,-500.0,0.0003863,7]
[314139398,1708019456004,-2000.0,0.0003863,2]
[314139399,1708019456014,-649.79,0.0003863,7]
[314139400,1708019456024,-500.0,0.0003863,7]
[314139401,1708019456033,-566.32015051,0.0003863,7]
[314139402,1708019456042,-536.14,0.0003863,2]
[314139403,1708019456052,-200.0,0.0003863,2]
[314139404,1708019456062,-500.0,0.0003863,7]
[314139405,1708019456072,-500.0,0.0003863,7]
[314139406,1708019456081,-500.0,0.0003863,7]
[314139407,1708019456092,-500.0,0.0003863,7]
[314139408,1708019456101,-500.0,0.0003863,7]
[314139409,1708019456111,-500.0,0.0003863,7]
[314139410,1708019456120,-593.03930294,0.0003863,7]
[314139411,1708019456130,-500.0,0.0003863,7]
[314139412,1708019456140,-417.00163147,0.0003863,7]
[314139413,1708019456150,-500.0,0.0003863,7]
[314139414,1708019456160,-426.14303845,0.0003863,7]
[314139415,1708019456169,-396.72786808,0.0003863,7]
[314139416,1708019456179,-500.0,0.0003863,7]
[314139417,1708019456188,-500.0,0.0003863,7]
[314139418,1708019456198,-500.0,0.0003863,7]
[314139419,1708019456207,-500.0,0.0003863,7]
[314139420,1708019456217,-500.0,0.0003863,7]
[314139421,1708019456226,-500.0,0.0003863,7]
[314139422,1708019456236,-500.0,0.0003863,7]
[314139423,1708019456247,-500.0,0.0003863,7]
[314139424,1708019456256,-530.61255833,0.0003863,7]
[314139425,1708019456266,-500.0,0.0003863,7]
[314139426,1708019456276,-500.0,0.0003863,7]
[314139427,1708019456286,-500.0,0.0003863,7]
[314139428,1708019456296,-500.0,0.0003863,7]
[314139429,1708019456306,-500.0,0.0003863,7]
[314139430,1708019456316,-500.0,0.0003863,7]
[314139431,1708019456326,-500.0,0.0003863,7]
[314139432,1708019456336,-500.0,0.0003863,7]
[314139433,1708019456346,-522.02383035,0.0003863,7]
[314139434,1708019456355,-500.0,0.0003863,7]
[314139435,1708019456366,-500.0,0.0003863,7]
[314139436,1708019456376,-500.0,0.0003863,7]
[314139437,1708019456385,-500.0,0.0003863,7]
[314139438,1708019456394,-500.0,0.0003863,7]
[314139439,1708019456404,-500.0,0.0003863,7]
[314139440,1708019456413,-500.0,0.0003863,7]
[314139441,1708019456423,-500.0,0.0003863,7]
[314139442,1708019456435,-500.0,0.0003863,7]
[314139443,1708019456445,-1207.79,0.0003863,7]
[314139444,1708019456456,-500.0,0.0003863,7]
[314139445,1708019456465,-500.0,0.0003863,7]
[314139446,1708019456475,-512.53285289,0.0003863,7]
[314139447,1708019456484,-546.99060507,0.0003863,7]
[314139448,1708019456496,-517.89551404,0.0003863,7]
[314139449,1708019456506,-500.0,0.0003863,7]
[314139450,1708019456520,-500.0,0.0003863,7]
[314139451,1708019456530,-500.0,0.0003863,7]
[314139452,1708019456540,-500.0,0.0003863,7]
[314139453,1708019456549,-500.0,0.0003863,7]
[314139454,1708019456559,-500.0,0.0003863,7]
[314139455,1708019456568,-268.72282631,0.0003863,7]
[314139456,1708019456578,-500.0,0.0003863,7]
[314139457,1708019456588,-500.0,0.0003863,7]
[314139458,1708019456597,-528.10754799,0.0003863,7]
[314139459,1708019456607,-500.0,0.0003863,7]
[314139460,1708019456616,-500.0,0.0003863,7]
[314139461,1708019456625,-508.47223195,0.0003863,7]
[314139462,1708019456635,-500.0,0.0003863,7]
[314139463,1708019456644,-212.18,0.0003863,7]
[314139464,1708019456654,-500.0,0.0003863,7]
[314139465,1708019456664,-500.0,0.0003863,7]
[314139466,1708019456673,-500.0,0.0003863,7]
[314139467,1708019456682,-500.0,0.0003863,7]
[314139468,1708019456692,-500.0,0.0003863,7]
[314139469,1708019456702,-734.84,0.0003863,2]
[314139470,1708019456711,-174.15938956,0.0003863,7]
[314139471,1708019456721,-500.0,0.0003863,7]
[314139472,1708019456730,-500.0,0.0003863,7]
[314139473,1708019456740,-500.0,0.0003863,7]
[314139474,1708019456749,-500.0,0.0003863,7]
[314139475,1708019456759,-500.0,0.0003863,7]
[314139476,1708019456769,-500.0,0.0003863,7]
[314139477,1708019456778,-1247.33,0.0003863,7]
[314139478,1708019456787,-500.0,0.0003863,7]
[314139479,1708019456796,-500.0,0.0003863,7]
[314139480,1708019456806,-335.91560813,0.0003863,7]
[314139481,1708019456814,-152.78889707,0.0003863,7]
[314139482,1708019456824,-500.0,0.0003863,7]
[314139483,1708019456834,-500.0,0.0003863,7]
[314139484,1708019456843,-500.0,0.0003863,7]
[314139485,1708019456852,-500.0,0.0003863,7]
[314139486,1708019456862,-500.0,0.0003863,7]
[314139487,1708019456871,-500.0,0.0003863,7]
[314139488,1708019456881,-500.0,0.0003863,7]
[314139489,1708019456891,-500.0,0.0003863,7]
[314139490,1708019456901,-500.0,0.0003863,7]
[314139491,1708019456912,-500.0,0.0003863,7]
[314139492,1708019456922,-500.0,0.0003863,7]
[314139493,1708019456931,-500.0,0.0003863,2]
[314139494,1708019456941,-500.0,0.0003863,7]
[314139495,1708019456951,-500.0,0.0003863,7]
[314139496,1708019456962,-500.0,0.0003863,7]
[314139497,1708019456972,-989.83,0.0003863,7]
[314139498,1708019456981,-1915.49,0.0003863,7]
[314139499,1708019456992,-974.82,0.0003863,7]
[314139500,1708019457001,-500.0,0.0003863,7]
[314139501,1708019457010,-3861.24,0.0003863,7]
[314139502,1708019457020,-500.0,0.0003863,7]
[314139503,1708019457030,-500.0,0.0003863,7]
[314139504,1708019457039,-500.0,0.0003863,7]
[314139505,1708019457049,-500.0,0.0003863,7]
[314139506,1708019457059,-500.0,0.0003863,7]
[314139507,1708019457069,-500.0,0.0003863,7]
[314139508,1708019457078,-3576.165411,0.0003863,36]
[314139509,1708019457087,-500.0,0.0003863,7]
[314139510,1708019457097,-500.0,0.0003863,7]
[314139511,1708019457106,-500.0,0.0003863,7]
[314139512,1708019457115,-3000.0,0.0003863,36]
[314139513,1708019457124,-500.0,0.0003863,7]
[314139514,1708019457133,-500.0,0.0003863,7]
[314139515,1708019457143,-500.0,0.0003863,7]
[314139516,1708019457152,-846.99,0.0003863,7]
[314139517,1708019457162,-500.0,0.0003863,7]
[314139518,1708019457171,-3759.08,0.0003863,7]
[314139519,1708019457180,-988.14,0.0003863,7]
[314139520,1708019457189,-500.0,0.0003863,7]
[314139521,1708019457198,-490.16034233,0.0003863,7]
[314139522,1708019457208,-500.0,0.0003863,7]
[314139523,1708019457217,-500.0,0.0003863,7]
[314139524,1708019457227,-500.0,0.0003863,7]
[314139525,1708019457236,-572.42512167,0.0003863,7]
[314139526,1708019457248,-500.0,0.0003863,7]
[314139527,1708019457258,-500.0,0.0003863,7]
[314139528,1708019457268,-500.0,0.0003863,2]
[314139529,1708019457277,-500.0,0.0003863,7]
[314139530,1708019457286,-1634.49,0.0003863,7]
[314139531,1708019457296,-2514.11,0.0003863,7]
[314139532,1708019457305,-500.0,0.0003863,7]
[314139533,1708019457315,-500.0,0.0003863,7]
[314139534,1708019457324,-500.0,0.0003863,7]
[314139535,1708019457333,-500.0,0.0003863,7]
[314139536,1708019457343,-4422.2,0.0003863,7]
[314139537,1708019457352,-495.0,0.0003863,7]
[314139538,1708019457362,-500.0,0.0003863,7]
[314139539,1708019457370,-500.0,0.0003863,7]
[314139540,1708019457380,-500.0,0.0003863,7]
[314139541,1708019457389,-663.11,0.0003863,7]
[314139542,1708019457398,-500.0,0.0003863,7]
[314139543,1708019457407,-500.0,0.0003863,7]
[314139544,1708019457419,-775.66,0.0003863,7]
[314139545,1708019457428,-500.0,0.0003863,7]
[314139546,1708019457440,-500.0,0.0003863,7]
[314139547,1708019457449,-500.0,0.0003863,7]
[314139548,1708019457458,-500.0,0.0003863,7]
[314139549,1708019457467,-598.19,0.0003863,7]
[314139550,1708019457477,-500.0,0.0003863,2]
[314139551,1708019457487,-500.0,0.0003863,7]
[314139552,1708019457500,-500.0,0.0003863,7]
[314139553,1708019457509,-516.5399053,0.0003863,7]
[314139554,1708019457631,-500.0,0.0003863,7]
[314139555,1708019457640,-607.71,0.0003863,7]
[314139556,1708019457650,-500.0,0.0003863,7]
[314139557,1708019457659,-500.0,0.0003863,7]
[314139558,1708019457668,-500.0,0.0003863,7]
[314139559,1708019457678,-500.0,0.0003863,7]
[314139560,1708019457687,-482.88053404,0.0003863,7]
[314139561,1708019457697,-500.0,0.0003863,7]
[314139562,1708019457706,-500.0,0.0003863,7]
[314139563,1708019457715,-500.0,0.0003863,7]
[314139564,1708019457725,-500.0,0.0003863,7]
[314139565,1708019457734,-500.0,0.0003863,7]
[314139566,1708019457745,-500.0,0.0003863,7]
[314139567,1708019457755,-500.0,0.0003863,7]
[314139568,1708019457764,-500.0,0.0003863,7]
[314139569,1708019457773,-500.0,0.0003863,7]
[314139570,1708019457783,-500.0,0.0003863,7]
[314139571,1708019457793,-500.0,0.0003863,7]
[314139572,1708019457802,-1744.6,0.0003863,7]
[314139573,1708019457811,-518.22724623,0.0003863,7]
[314139574,1708019457820,-210.39,0.0003863,7]
[314139575,1708019457829,-912.33,0.0003863,7]
[314139576,1708019457838,-500.0,0.0003863,7]
[314139577,1708019457847,-500.0,0.0003863,7]
[314139578,1708019457857,-500.0,0.0003863,7]
[314139579,1708019457866,-500.0,0.0003863,7]
[314139580,1708019457877,-500.0,0.0003863,7]
[314139581,1708019457886,-500.0,0.0003863,7]
[314139582,1708019457895,-1155.45,0.0003863,7]
[314139583,1708019457905,-1067.47,0.0003863,7]
[314139584,1708019457915,-4410.01,0.0003863,7]
[314139585,1708019457925,-519.85,0.0003863,7]
[314139586,1708019457936,-11001.71,0.0003863,7]
[314139587,1708019457944,-500.0,0.0003863,7]
[314139588,1708019457953,-500.0,0.0003863,7]
[314139589,1708019457963,-500.0,0.0003863,7]
[314139590,1708019457972,-500.0,0.0003863,7]
[314139591,1708019457981,-500.0,0.0003863,7]
[314139592,1708019457992,-500.0,0.0003863,7]
[314139593,1708019458001,-518.57860347,0.0003863,7]
[314139594,1708019458010,-500.0,0.0003863,7]
[314139595,1708019458019,-277.80811913,0.0003863,7]
[314139596,1708019458030,-3091.91,0.0003863,7]
[314139597,1708019458039,-500.0,0.0003863,7]
[314139598,1708019458048,-500.0,0.0003863,7]
[314139599,1708019458058,-500.0,0.0003863,7]
[314139600,1708019458067,-1258.05,0.0003863,7]
[314139601,1708019458076,-500.0,0.0003863,7]
[314139602,1708019458085,-528.33338442,0.0003863,7]
[314139603,1708019458094,-500.0,0.0003863,7]
[314139604,1708019458103,-500.0,0.0003863,7]
[314139605,1708019458113,-500.0,0.0003863,7]
[314139606,1708019458122,-500.0,0.0003863,7]
[314139607,1708019458132,-500.0,0.0003863,7]
[314139608,1708019458142,-500.0,0.0003863,7]
[314139609,1708019458152,-842.08,0.0003863,7]
[314139610,1708019458161,-500.0,0.0003863,7]
[314139611,1708019458171,-526.18847654,0.0003863,7]
[314139612,1708019458180,-500.0,0.0003863,7]
[314139613,1708019458190,-500.0,0.0003863,7]
[314139614,1708019458200,-922.13,0.0003863,7]
[314139615,1708019458209,-500.0,0.0003863,7]
[314139616,1708019458219,-656.01,0.0003863,7]
[314139617,1708019458228,-500.0,0.0003863,7]
[314139618,1708019458238,-3344.4,0.0003863,7]
[314139619,1708019458248,-500.0,0.0003863,7]
[314139620,1708019458257,-904.53,0.0003863,7]
[314139621,1708019458268,-500.0,0.0003863,7]
[314139622,1708019458278,-210.55109828,0.0003863,7]
[314139623,1708019458287,-2961.74,0.0003863,7]
[314139624,1708019458297,-500.0,0.0003863,7]
[314139625,1708019458307,-500.0,0.0003863,7]
[314139626,1708019458317,-500.0,0.0003863,7]
[314139627,1708019458327,-500.0,0.0003863,7]
[314139628,1708019458337,-844.38,0.0003863,7]
[314139629,1708019458346,-500.0,0.0003863,7]
[314139630,1708019458356,-500.0,0.0003863,7]
[314139631,1708019458367,-500.0,0.0003863,7]
[314139632,1708019458377,-500.0,0.0003863,7]
[314139633,1708019458387,-500.0,0.0003863,7]
[314139634,1708019458396,-500.0,0.0003863,7]
[314139635,1708019458405,-169.966188,0.0003863,7]
[314139636,1708019458414,-500.0,0.0003863,7]
[314139637,1708019458423,-500.0,0.0003863,7]
[314139638,1708019458433,-1428.06,0.0003863,7]
[314139639,1708019458447,-169.966188,0.0003863,7]
[314139640,1708019458456,-1125.27,0.0003863,7]
[314139641,1708019458466,-535.86,0.0003863,7]
[314139642,1708019458475,-2160.8,0.0003863,7]
[314139643,1708019458486,-580.3037854,0.0003863,7]
[314139644,1708019458498,-500.0,0.0003863,7]
[314139645,1708019458508,-500.0,0.0003863,7]
[314139646,1708019458517,-646.63643142,0.0003863,7]
[314139647,1708019458527,-500.0,0.0003863,7]
[314139648,1708019458537,-500.0,0.0003863,7]
[314139649,1708019458547,-500.0,0.0003863,7]
[314139650,1708019458557,-537.94,0.0003863,7]
[314139651,1708019458567,-825.32,0.0003863,7]
[314139652,1708019458577,-500.0,0.0003863,7]
[314139653,1708019458587,-151.0,0.0003863,7]
[314139654,1708019458597,-500.0,0.0003863,7]
[314139655,1708019458607,-677.81,0.0003863,7]
[314139656,1708019458618,-559.07,0.0003863,7]
[314139657,1708019458629,-1297.24,0.0003863,7]
[314139658,1708019458638,-500.0,0.0003863,7]
[314139659,1708019458648,-500.0,0.0003863,7]
[314139660,1708019458658,-500.0,0.0003863,7]
[314139661,1708019458667,-500.0,0.0003863,7]
[314139662,1708019458677,-500.0,0.0003863,7]
[314139663,1708019458686,-500.0,0.0003863,7]
[314139664,1708019458696,-500.0,0.0003863,7]
[314139665,1708019458705,-500.0,0.0003863,7]
[314139666,1708019458714,-500.0,0.0003863,7]
[314139667,1708019458724,-626.79260193,0.0003863,7]
[314139668,1708019458733,-515.7048019,0.0003863,7]
[314139669,1708019458743,-2776.05,0.0003863,7]
[314139670,1708019458753,-4055.04,0.0003863,7]
[314139671,1708019458763,-250.30275306,0.0003863,7]
[314139672,1708019458772,-500.0,0.0003863,7]
[314139673,1708019458781,-500.0,0.0003863,7]
[314139674,1708019458791,-514.02194776,0.0003863,7]
[314139675,1708019458801,-500.0,0.0003863,7]
[314139676,1708019458810,-4988.27,0.0003863,7]
[314139677,1708019458820,-500.0,0.0003863,7]
[314139678,1708019458829,-1472.71,0.0003863,7]
[314139679,1708019458839,-500.0,0.0003863,7]
[314139680,1708019458848,-500.0,0.0003863,7]
[314139681,1708019458858,-500.0,0.0003863,7]
[314139682,1708019458867,-500.0,0.0003863,7]
[314139683,1708019458877,-500.0,0.0003863,7]
[314139684,1708019458887,-500.0,0.0003863,7]
[314139685,1708019458896,-500.0,0.0003863,7]
[314139686,1708019458906,-500.0,0.0003863,7]
[314139687,1708019458916,-500.0,0.0003863,7]
[314139688,1708019458925,-1663.68,0.0003863,7]
[314139689,1708019458934,-500.0,0.0003863,7]
[314139690,1708019458944,-4949.84,0.0003863,7]
[314139691,1708019458954,-500.0,0.0003863,7]
[314139692,1708019458964,-500.0,0.0003863,7]
[314139693,1708019458973,-1970.1,0.0003863,7]
[314139694,1708019458985,-500.0,0.0003863,7]
[314139695,1708019458994,-500.0,0.0003863,7]
[314139696,1708019459003,-1101.62,0.0003863,7]
[314139697,1708019459013,-500.0,0.0003863,7]
[314139698,1708019459023,-891.01,0.0003863,7]
[314139699,1708019459033,-1111.21,0.0003863,7]
[314139700,1708019459043,-500.0,0.0003863,7]
[314139701,1708019459053,-500.0,0.0003863,7]
[314139702,1708019459063,-524.12743381,0.0003863,7]
[314139703,1708019459073,-500.0,0.0003863,7]
[314139704,1708019459083,-1203.88,0.0003863,7]
[314139705,1708019459092,-500.0,0.0003863,7]
[314139706,1708019459102,-1055.37,0.0003863,7]
[314139707,1708019459112,-500.0,0.0003863,7]
[314139708,1708019459122,-1292.58,0.0003863,7]
[314139709,1708019459131,-500.0,0.0003863,7]
[314139710,1708019459151,-500.0,0.0003863,7]
[314139711,1708019459171,-500.0,0.0003863,7]
[314139712,1708019459194,-500.0,0.0003863,7]
[314139713,1708019459214,-151.0,0.0003863,7]
[314139714,1708019459236,-524.74769229,0.0003863,7]
[314139715,1708019459259,-500.0,0.0003863,7]
[314139716,1708019459281,-500.0,0.0003863,7]
[314139717,1708019459302,-996.39,0.0003863,7]
[314139718,1708019459324,-735.16,0.0003863,7]
[314139719,1708019459337,-164.745952,0.0003863,7]
[314139720,1708019459346,-2325.06,0.0003863,7]
[314139721,1708019459357,-500.0,0.0003863,7]
[314139722,1708019459366,-500.0,0.0003863,7]
[314139723,1708019459376,-500.0,0.0003863,7]
[314139724,1708019459385,-525.10245611,0.0003863,7]
[314139725,1708019459396,-500.0,0.0003863,7]
[314139726,1708019459405,-527.17463566,0.0003863,7]
[314139727,1708019459415,-500.0,0.0003863,7]
[314139728,1708019459426,-500.0,0.0003863,7]
[314139729,1708019459438,-500.0,0.0003863,7]
[314139730,1708019459449,-500.0,0.0003863,7]
[314139731,1708019459458,-500.0,0.0003863,7]
[314139732,1708019459468,-5038.29,0.0003863,7]
[314139733,1708019459478,-500.0,0.0003863,7]
[314139734,1708019459488,-500.0,0.0003863,7]
[314139735,1708019459498,-569.41,0.0003863,7]
[314139736,1708019459508,-765.74,0.0003863,7]
[314139737,1708019459517,-500.0,0.0003863,7]
[314139738,1708019459528,-500.0,0.0003863,7]
[314139739,1708019459538,-500.0,0.0003863,7]
[314139740,1708019459549,-500.0,0.0003863,7]
[314139741,1708019459558,-480.0169275,0.0003863,7]
[314139742,1708019459568,-500.0,0.0003863,7]
[314139743,1708019459578,-500.0,0.0003863,7]
[314139744,1708019459587,-4016.58,0.0003863,7]
[314139745,1708019459597,-524.19,0.0003863,7]
[314139746,1708019459607,-500.0,0.0003863,7]
[314139747,1708019459616,-1145.21,0.0003863,7]
[314139748,1708019459626,-836.92,0.0003863,7]
[314139749,1708019459635,-500.0,0.0003863,7]
[314139750,1708019459646,-500.0,0.0003863,7]
[314139751,1708019459655,-500.0,0.0003863,7]
[314139752,1708019459664,-526.76972106,0.0003863,7]
[314139753,1708019459674,-686.87,0.0003863,7]
[314139754,1708019459684,-619.17,0.0003863,7]
[314139755,1708019459693,-500.0,0.0003863,7]
[314139756,1708019459703,-500.0,0.0003863,7]
[314139757,1708019459713,-500.0,0.0003863,7]
[314139758,1708019459723,-500.0,0.0003863,7]
[314139759,1708019459733,-500.0,0.0003863,7]
[314139760,1708019459742,-500.0,0.0003863,7]
[314139761,1708019459752,-500.0,0.0003863,7]
[314139762,1708019459761,-1463.4,0.0003863,7]
[314139763,1708019459771,-439.52034672,0.0003863,7]
[314139764,1708019459781,-500.0,0.0003863,7]
[314139765,1708019459791,-713.6,0.0003863,7]
[314139766,1708019459919,-3254.19,0.0003863,7]
[314139767,1708019459930,-607.96,0.0003863,7]
[314139768,1708019459940,-556.07,0.0003863,7]
[314139769,1708019459950,-500.0,0.0003863,7]
[314139770,1708019459959,-500.0,0.0003863,7]
[314139771,1708019459969,-500.0,0.0003863,7]
[314139772,1708019459979,-500.0,0.0003863,7]
[314139773,1708019459989,-500.0,0.0003863,7]
[314139774,1708019460000,-500.0,0.0003863,7]
[314139775,1708019460010,-500.0,0.0003863,7]
[314139776,1708019460020,-500.0,0.0003863,7]
[314139777,1708019460030,-500.0,0.0003863,7]
[314139778,1708019460040,-1450.92,0.0003863,7]
[314139779,1708019460051,-1417.47,0.0003863,7]
[314139780,1708019460061,-500.0,0.0003863,7]
[314139781,1708019460072,-500.0,0.0003863,7]
[314139782,1708019460082,-553.92,0.0003863,7]
[314139783,1708019460092,-500.0,0.0003863,7]
[314139784,1708019460102,-500.0,0.0003863,7]
[314139785,1708019460112,-500.0,0.0003863,7]
[314139786,1708019460122,-2730.4,0.0003863,7]
[314139787,1708019460132,-3000.0,0.0003863,2]
[314139788,1708019460141,-585.8,0.0003863,7]
[314139789,1708019460151,-5934.21,0.0003863,7]
[314139790,1708019460161,-633.51,0.0003863,7]
[314139791,1708019460171,-1019.85,0.0003863,7]
[314139792,1708019460182,-500.0,0.0003863,7]
[314139793,1708019460192,-500.0,0.0003863,7]
[314139794,1708019460202,-394.77,0.0003863,7]
[314139795,1708019460212,-500.0,0.0003863,7]
[314139796,1708019460222,-701.09,0.0003863,7]
[314139797,1708019460233,-500.0,0.0003863,7]
[314139798,1708019460245,-1857.32,0.0003863,7]
[314139799,1708019460255,-3563.59,0.0003863,7]
[314139800,1708019460265,-500.0,0.0003863,7]
[314139801,1708019460275,-500.0,0.0003863,7]
[314139802,1708019460285,-500.0,0.0003863,7]
[314139803,1708019460296,-513.7757108,0.0003863,7]
[314139804,1708019460306,-4513.55,0.0003863,7]
[314139805,1708019460316,-500.0,0.0003863,7]
[314139806,1708019460326,-500.0,0.0003863,7]
[314139807,1708019460335,-500.0,0.0003863,7]
[314139808,1708019460346,-1548.7,0.0003863,7]
[314139809,1708019460355,-500.0,0.0003863,7]
[314139810,1708019460365,-500.0,0.0003863,7]
[314139811,1708019460375,-500.0,0.0003863,7]
[314139812,1708019460386,-707.65,0.0003863,2]
[314139813,1708019460396,-1098.48,0.0003863,7]
[314139814,1708019460405,-6547.24,0.0003863,7]
[314139815,1708019460415,-200.0,0.0003863,2]
[314139816,1708019460425,-522.68,0.0003863,7]
[314139817,1708019460438,-500.0,0.0003863,7]
[314139818,1708019460447,-500.0,0.0003863,7]
[314139819,1708019460456,-500.0,0.0003863,7]
[314139820,1708019460466,-500.0,0.0003863,7]
[314139821,1708019460476,-995.72,0.0003863,7]
[314139822,1708019460486,-993.29,0.0003863,7]
[314139823,1708019460497,-500.0,0.0003863,7]
[314139824,1708019460507,-500.0,0.0003863,7]
[314139825,1708019460519,-47725.72,0.0003863,7]
[314139826,1708019460529,-500.0,0.0003863,7]
[314139827,1708019460539,-500.0,0.0003863,7]
[314139828,1708019460548,-5000.54,0.0003863,7]
[314139829,1708019460558,-1324.67,0.0003863,7]
[314139830,1708019460568,-500.0,0.0003863,7]
[314139831,1708019460577,-528.60558503,0.0003863,7]
[314139832,1708019460587,-373.6,0.0003863,7]
[314139833,1708019460596,-500.0,0.0003863,7]
[314139834,1708019460606,-1048.47,0.0003863,7]
[314139835,1708019460615,-500.0,0.0003863,7]
[314139836,1708019460625,-500.0,0.0003863,7]
[314139837,1708019460634,-500.0,0.0003863,2]
[314139838,1708019460643,-1233.71,0.0003863,7]